bitfinex/quotes_BTCUSD_20250127
["timestamp","ask_amount","ask_price","bid_price","bid_amount"]
[1737965505127,3.3e-07,99002.0,98994.0,0.173]
[1737965505356,0.0001484,99004.0,98996.0,0.173]
[1737965505527,0.0001484,99004.0,98998.0,0.173]
[1737965505741,0.0001484,99004.0,99000.0,0.173]
[1737965505957,0.0001484,99004.0,99002.0,0.27034729]
[1737965506160,0.0001484,99004.0,99003.0,0.30133986]
[1737965506989,0.0011484,99004.0,99003.0,0.30133986]
[1737965507394,0.0001484,99004.0,99003.0,0.27034729]
[1737965507541,0.0011484,99004.0,99003.0,0.27034729]
[1737965507745,0.0011484,99004.0,99003.0,0.28398634]
[1737965508084,0.00892612,99004.0,99003.0,0.01363905]
[1737965508296,0.00992612,99004.0,99003.0,0.01963905]
[1737965508639,0.00892612,99004.0,99003.0,0.01363905]
[1737965508840,0.0001484,99004.0,99003.0,0.11398634]
[1737965509066,0.0001484,99004.0,99003.0,0.13698634]
[1737965509262,0.0001484,99004.0,99003.0,0.28498634]
[1737965509535,0.0001484,99004.0,99003.0,0.29607434]
[1737965509746,0.0001415,99022.0,99013.0,0.023]
[1737965509955,0.0001415,99022.0,99016.0,0.173]
[1737965510158,0.0001415,99022.0,99021.0,0.27034729]
[1737965510549,0.0001417,99033.0,99022.0,0.173]
[1737965510748,0.0001418,99049.0,99031.0,0.09734729]
[1737965511041,0.0001418,99049.0,99045.0,0.173]
[1737965511412,0.00029029,99049.0,99046.0,0.09734729]
[1737965511616,0.00029029,99049.0,99047.0,0.173]
[1737965511794,0.00029029,99049.0,99048.0,0.27034729]
[1737965511965,0.00029029,99049.0,99048.0,0.15]
[1737965512174,0.01006801,99049.0,99048.0,0.15]
[1737965512755,0.00129029,99049.0,99048.0,0.023]
[1737965512957,0.00129029,99049.0,99048.0,0.13205272]
[1737965513338,0.00129029,99049.0,99048.0,0.13305272]
[1737965513544,0.00029029,99049.0,99048.0,0.13305272]
[1737965513751,0.00029029,99049.0,99048.0,0.13205272]
[1737965514231,0.00029029,99049.0,99048.0,0.13305272]
[1737965514575,0.00029029,99049.0,99048.0,0.13405272]
[1737965514960,0.00029029,99049.0,99048.0,0.13305272]
[1737965515161,0.00029029,99049.0,99048.0,0.13605272]
[1737965515997,0.00029029,99049.0,99048.0,0.13505272]
[1737965516207,0.5341,99056.0,99049.0,0.023]
[1737965516375,0.5341,99056.0,99055.0,0.173]
[1737965516575,0.5341,99065.0,99055.0,0.27034729]
[1737965516836,0.5341,99065.0,99057.0,0.173]
[1737965517011,0.5341,99065.0,99048.0,0.01170543]
[1737965517012,0.00877772,99054.0,99048.0,0.01370543]
[1737965517244,0.00877772,99054.0,99049.0,0.09734729]
[1737965517653,0.5341,99065.0,99048.0,0.001]
[1737965517654,0.00877772,99049.0,99048.0,0.01174888]
[1737965517856,0.00877772,99049.0,99026.0,0.08901615]
[1737965518052,0.00877772,99043.0,99027.0,0.24734729]
[1737965518232,0.079,99036.0,99027.0,0.09734729]
[1737965518642,0.079,99036.0,99028.0,0.023]
[1737965518842,0.079,99036.0,99029.0,0.09734729]
[1737965519275,0.079,99036.0,99030.0,0.173]
[1737965519477,0.079,99036.0,99031.0,0.24734729]
[1737965519869,0.54287772,99048.0,99032.0,0.173]
[1737965520070,0.00877772,99043.0,99039.0,0.173]
[1737965520270,0.00877772,99043.0,99040.0,0.09734729]
[1737965520494,0.5341,99042.0,99041.0,0.173]
[1737965520698,0.5341,99042.0,99041.0,0.27034729]
[1737965520945,0.5341,99048.0,99041.0,0.27034729]
[1737965521164,0.0001415,99049.0,99047.0,0.173]
[1737965521335,0.0001415,99049.0,99048.0,0.27034729]
[1737965522787,0.0001415,99049.0,99048.0,0.37085329]
[1737965523514,0.0001415,99049.0,99048.0,0.27034729]
[1737965523867,0.0001415,99049.0,99048.0,0.09734729]
[1737965524067,0.0001415,99049.0,99048.0,0.12034729]
[1737965524291,0.0011415,99049.0,99048.0,0.12034729]
[1737965524659,0.0011415,99049.0,99048.0,0.12534729]
[1737965524902,0.00891922,99049.0,99048.0,0.005]
[1737965525114,0.00877772,99042.0,99041.0,0.01171319]
[1737965525311,0.00877772,99039.0,99020.0,0.39541261]
[1737965525516,0.00877772,99029.0,99027.0,0.09734729]
[1737965525718,0.00877772,99027.0,99020.0,0.39541261]
[1737965525917,0.00877772,99027.0,99026.0,0.10076234]
[1737965526143,0.5341,99028.0,99026.0,0.10076234]
[1737965526325,0.00877772,99027.0,99026.0,0.10076234]
[1737965526741,0.00877772,99027.0,99026.0,0.08916464]
[1737965527225,0.00877772,99027.0,99026.0,0.09616464]
[1737965527424,0.00877772,99027.0,99026.0,0.08916464]
[1737965527621,0.00877772,99027.0,99026.0,0.09016464]
[1737965527831,0.00877772,99027.0,99026.0,0.09216464]
[1737965528030,0.00877772,99027.0,99026.0,0.08916464]
[1737965528489,0.54287772,99028.0,99027.0,0.023]
[1737965529141,0.54287772,99028.0,99026.0,0.00014849]
[1737965529346,0.5341,99028.0,99026.0,0.00014849]
[1737965529625,0.5341,99028.0,99027.0,0.27034729]
[1737965529872,0.5341,99044.0,99028.0,0.173]
[1737965530081,0.5341,99044.0,99027.0,0.48793129]
[1737965530082,0.5341,99044.0,99040.0,0.15]
[1737965530234,0.5341,99062.0,99044.0,0.173]
[1737965530442,0.5341,99061.0,99048.0,0.173]
[1737965530667,0.5341,99060.0,99048.0,0.27034729]
[1737965530827,0.0488,99063.0,99048.0,0.27034729]
[1737965530828,0.5341,99062.0,99048.0,0.27034729]
[1737965531028,0.5341,99065.0,99048.0,0.41935832]
[1737965531238,0.5341,99065.0,99054.0,0.09734729]
[1737965531440,0.00877772,99062.0,99054.0,0.09734729]
[1737965531641,0.5341,99065.0,99055.0,0.173]
[1737965531887,0.5341,99065.0,99056.0,0.09734729]
[1737965532088,0.5341,99065.0,99057.0,0.173]
[1737965532330,0.5341,99065.0,99061.0,0.173]
[1737965532545,0.5341,99065.0,99064.0,0.324417]
[1737965532750,0.5341,99065.0,99064.0,0.42176429]
[1737965532955,0.5341,99074.0,99073.0,0.301403]
[1737965533165,0.5341,99074.0,99073.0,0.42175029]
[1737965533607,0.0811,99081.0,99080.0,0.301392]
[1737965533809,0.0812299,99081.0,99080.0,0.42173929]
[1737965534217,0.09000762,99081.0,99080.0,0.324392]
[1737965534422,0.09000762,99081.0,99080.0,0.301392]
[1737965534873,0.09000762,99081.0,99065.0,0.39541261]
[1737965534874,0.00877772,99067.0,99050.0,0.39541261]
[1737965535086,0.13867772,99053.0,99052.0,0.151435]
[1737965535304,0.13867772,99053.0,99052.0,0.27178229]
[1737965535647,0.13867772,99053.0,99052.0,0.39878229]
[1737965536259,0.13867772,99053.0,99052.0,0.27178229]
[1737965536763,0.13867772,99053.0,99052.0,0.42178229]
[1737965536764,0.1299,99053.0,99052.0,0.42178229]
[1737965537537,0.1299,99053.0,99052.0,0.42278229]
[1737965537960,0.1299,99053.0,99052.0,0.43414122]
[1737965538498,0.1234,99053.0,99052.0,0.43414122]
[1737965538800,0.13217772,99053.0,99052.0,0.16235893]
[1737965539009,0.66627772,99053.0,99052.0,0.302435]
[1737965539416,0.66627772,99053.0,99052.0,0.152435]
[1737965539616,0.68481772,99053.0,99052.0,0.152435]
[1737965540660,0.68781772,99053.0,99052.0,0.152435]
[1737965540865,0.68781772,99053.0,99050.0,0.15]
[1737965541079,0.00877772,99044.0,99043.0,0.03463866]
[1737965541286,0.00877772,99044.0,99043.0,0.43343495]
[1737965541287,0.5341,99044.0,99043.0,0.43343495]
[1737965541494,0.54287772,99044.0,99043.0,0.43343495]
[1737965541669,0.5341,99044.0,99043.0,0.43343495]
[1737965542107,0.54287772,99044.0,99043.0,0.43343495]
[1737965542650,0.5341,99044.0,99043.0,0.43343495]
[1737965543654,0.5341,99044.0,99043.0,0.46441477]
[1737965544380,0.5341,99044.0,99043.0,0.43343495]
[1737965544559,0.5341,99044.0,99043.0,0.43443495]
[1737965544788,0.5341,99044.0,99043.0,0.43643495]
[1737965545028,0.14194,99053.0,99043.0,0.43643495]
[1737965545029,0.01854,99053.0,99052.0,0.151435]
[1737965545241,0.5341,99060.0,99059.0,0.301424]
[1737965545447,0.5341,99060.0,99059.0,0.45274362]
[1737965545649,0.5341,99076.0,99075.0,0.3014]
[1737965545849,0.0756,99077.0,99076.0,0.301398]
[1737965546058,0.0451,99088.0,99085.0,0.301385]
[1737965546059,0.5341,99086.0,99085.0,0.301385]
[1737965546283,0.00014843,99087.0,99086.0,0.324383]
[1737965546513,0.53424843,99087.0,99086.0,0.42173029]
[1737965548660,0.53524843,99087.0,99086.0,0.42173029]
[1737965550491,0.53424843,99087.0,99086.0,0.42173029]
[1737965550695,0.54302615,99087.0,99086.0,0.42173029]
[1737965551320,0.00877772,99072.0,99060.0,0.010088]
[1737965551505,0.00877772,99069.0,99068.0,0.151411]
[1737965551751,0.05457772,99069.0,99068.0,0.151411]
[1737965551957,0.05457772,99069.0,99068.0,0.174411]
[1737965552363,0.05457772,99069.0,99068.0,0.301411]
[1737965552808,0.58867772,99069.0,99068.0,0.301411]
[1737965553233,0.58867772,99069.0,99068.0,0.33544136]
[1737965553442,0.58867772,99069.0,99061.0,0.09734729]
[1737965553658,0.00877772,99062.0,99061.0,0.15142]
[1737965554076,0.00877772,99062.0,99061.0,0.30142]
[1737965554699,0.00877772,99062.0,99061.0,0.30242]
[1737965554903,0.00877772,99062.0,99061.0,0.30442]
[1737965555083,0.00877772,99062.0,99061.0,0.30242]
[1737965555290,0.00877772,99062.0,99061.0,0.30142]
[1737965555488,0.0796,99068.0,99067.0,0.301412]
[1737965555628,0.0796,99068.0,99067.0,0.42175929]
[1737965557138,0.5342416,99069.0,99068.0,0.324411]
[1737965557362,0.5342416,99069.0,99068.0,0.42175829]
[1737965558522,0.0001416,99069.0,99068.0,0.42175829]
[1737965558763,0.0001416,99069.0,99068.0,0.81187529]
[1737965559267,0.5341,99078.0,99077.0,0.324397]
[1737965559496,0.5341,99078.0,99077.0,0.42174429]
[1737965559900,0.5341,99078.0,99077.0,0.4525862]
[1737965560542,0.5341,99078.0,99077.0,0.46266951]
[1737965560757,0.5341,99078.0,99077.0,0.58498529]
[1737965560902,0.5341,99078.0,99077.0,0.56322341]
[1737965561106,0.5341,99078.0,99077.0,0.53238929]
[1737965561319,0.5341,99078.0,99077.0,0.62591238]
[1737965561552,0.5341,99078.0,99077.0,0.45205338]
[1737965561553,0.5351,99078.0,99077.0,0.45205338]
[1737965561756,0.5351,99078.0,99077.0,0.42174429]
[1737965564523,0.54387772,99078.0,99077.0,0.42174429]
[1737965566525,0.5351,99078.0,99077.0,0.42174429]
[1737965567262,0.5341,99078.0,99077.0,0.42174429]
[1737965569005,0.54287772,99078.0,99077.0,0.42174429]
[1737965569395,0.5341,99078.0,99077.0,0.42174429]
[1737965569812,0.54287772,99078.0,99077.0,0.42174429]
[1737965569988,0.54301932,99078.0,99077.0,0.42174429]
[1737965570603,0.5342416,99078.0,99077.0,0.42174429]
[1737965571394,0.61961932,99078.0,99077.0,0.301397]
[1737965571805,0.61961932,99078.0,99077.0,0.324397]
[1737965572214,0.6108416,99078.0,99077.0,0.324397]
[1737965572408,0.61961932,99078.0,99077.0,0.324397]
[1737965572659,0.6108416,99078.0,99077.0,0.324397]
[1737965572857,0.61961932,99078.0,99077.0,0.324397]
[1737965574041,0.66841932,99078.0,99077.0,0.324397]
[1737965574235,0.66941932,99078.0,99077.0,0.324397]
[1737965574885,0.66941932,99078.0,99077.0,0.15]
[1737965575306,0.82081432,99078.0,99077.0,0.15]
[1737965575954,0.66941932,99078.0,99077.0,0.15]
[1737965576162,0.66941932,99078.0,99077.0,0.301397]
[1737965576368,0.66941932,99078.0,99077.0,0.324397]
[1737965577201,0.5352416,99078.0,99077.0,0.42174429]
[1737965577413,0.5372416,99078.0,99077.0,0.45267794]
[1737965577822,0.5342416,99078.0,99077.0,0.45267794]
[1737965578026,0.5352416,99078.0,99077.0,0.45267794]
[1737965578440,0.5342416,99078.0,99077.0,0.47300619]
[1737965578867,0.5342416,99078.0,99077.0,0.95791019]
[1737965579076,0.4988476,99078.0,99077.0,0.88659719]
[1737965579797,0.4988476,99078.0,99077.0,0.80784919]
[1737965580005,0.4988476,99078.0,99077.0,0.48882719]
[1737965580446,0.4988476,99078.0,99077.0,0.49082719]
[1737965580851,0.4988476,99078.0,99077.0,0.28267794]
[1737965581079,0.50762532,99078.0,99077.0,0.154397]
[1737965581416,0.58422532,99078.0,99077.0,0.154397]
[1737965581588,0.5754476,99078.0,99077.0,0.303397]
[1737965581809,0.58422532,99078.0,99077.0,0.303397]
[1737965581986,0.58422532,99078.0,99077.0,0.324397]
[1737965582343,0.00877772,99071.0,99070.0,0.151408]
[1737965582462,0.00877772,99071.0,99070.0,0.301408]
[1737965582674,0.00877772,99070.0,99069.0,0.00029736]
[1737965582968,0.58422532,99078.0,99077.0,0.174397]
[1737965583938,0.05757772,99075.0,99074.0,0.301401]
[1737965584088,0.00877772,99074.0,99073.0,0.15]
[1737965584291,0.00877772,99074.0,99073.0,0.301403]
[1737965584517,0.50748372,99074.0,99073.0,0.15]
[1737965585094,0.50748372,99074.0,99069.0,0.30270536]
[1737965585317,0.08447772,99070.0,99069.0,0.00029736]
[1737965585556,0.00877772,99054.0,99048.0,0.01107627]
[1737965585766,0.78391572,99054.0,99040.0,0.201936]
[1737965585968,0.63248372,99054.0,99043.0,0.01100655]
[1737965586338,0.78391572,99054.0,99043.0,0.01100655]
[1737965586744,0.78391572,99054.0,99042.0,0.151449]
[1737965586896,0.78391572,99054.0,99034.0,0.151462]
[1737965587109,0.78391572,99054.0,99029.0,0.08901615]
[1737965587110,0.28521572,99050.0,99029.0,0.08901615]
[1737965587300,0.38256301,99050.0,99029.0,0.08901615]
[1737965587897,0.28521572,99050.0,99033.0,0.151463]
[1737965588100,0.28521572,99050.0,99033.0,0.20195]
[1737965588304,0.28521572,99050.0,99038.0,0.151456]
[1737965588500,0.13377772,99050.0,99040.0,0.42601923]
[1737965588743,0.13777772,99050.0,99049.0,0.00129736]
[1737965589516,0.14077772,99050.0,99049.0,0.00129736]
[1737965589917,0.13777772,99050.0,99049.0,0.00129736]
[1737965590416,0.28621572,99050.0,99049.0,0.00029736]
[1737965590611,0.78492172,99050.0,99049.0,0.00029736]
[1737965590809,0.78792172,99050.0,99049.0,0.00029736]
[1737965590982,0.23595072,99027.0,99003.0,0.151509]
[1737965591181,0.83200401,99027.0,99026.0,0.00044543]
[1737965591384,0.83200401,99027.0,98990.0,0.00029715]
[1737965591385,0.13377772,98995.0,98990.0,0.00029715]
[1737965591611,1.29018853,98995.0,98994.0,0.0894617]
[1737965591786,1.28892572,98995.0,98994.0,0.0894617]
[1737965591986,1.13740372,98995.0,98994.0,0.2409857]
[1737965592187,1.13740372,98995.0,98994.0,0.0894617]
[1737965592388,1.13740372,98995.0,98994.0,0.2409857]
[1737965593798,1.13740372,98995.0,98994.0,0.2449857]
[1737965594003,1.13840372,98995.0,98994.0,0.2639857]
[1737965594209,1.13840372,98995.0,98994.0,0.2409857]
[1737965594409,1.14040372,98995.0,98994.0,0.2409857]
[1737965594730,1.13740372,98995.0,98994.0,0.2409857]
[1737965594957,1.13840372,98995.0,98994.0,0.2409857]
[1737965595158,1.13840372,98995.0,98994.0,0.2639857]
[1737965595397,1.13740372,98995.0,98994.0,0.2639857]
[1737965595585,1.13740372,98995.0,98994.0,0.2409857]
[1737965595792,1.13940372,98995.0,98994.0,0.0894617]
[1737965595991,1.29092572,98995.0,98994.0,0.00044555]
[1737965596343,1.28992572,98995.0,98994.0,0.00044555]
[1737965596545,1.29092572,98995.0,98994.0,0.00044555]
[1737965596770,1.13940372,98995.0,98994.0,0.00044555]
[1737965597025,1.28992572,98995.0,98994.0,0.00044555]
[1737965597233,0.88461572,98995.0,98994.0,0.00044555]
[1737965597562,0.88761572,98995.0,98994.0,0.00044555]
[1737965597765,0.88561572,98995.0,98994.0,0.00044555]
[1737965597979,0.88961572,98995.0,98994.0,0.32496955]
[1737965598145,0.88961572,98995.0,98994.0,0.42231684]
[1737965598357,0.880838,98995.0,98994.0,0.42231684]
[1737965598763,0.50492,98995.0,98994.0,0.43342416]
[1737965599174,0.50792,98995.0,98994.0,0.43342416]
[1737965599601,0.50692,98995.0,98994.0,0.43342416]
[1737965600004,0.50692,98995.0,98994.0,0.9391142]
[1737965600434,0.37426524,98995.0,98994.0,1.1973652]
[1737965600651,0.37226524,98995.0,98994.0,1.1943652]
[1737965600876,0.31853002,98995.0,98994.0,1.1943652]
[1737965601080,0.27812402,98995.0,98994.0,1.1943652]
[1737965601281,0.17409167,98995.0,98994.0,1.1943652]
[1737965601485,0.11280167,98995.0,98994.0,1.2003652]
[1737965601691,0.370918,99018.0,98994.0,1.2003652]
[1737965601692,0.370918,99018.0,99017.0,0.324489]
[1737965601894,0.0461,99051.0,99043.0,0.151449]
[1737965601895,0.00877772,99044.0,99043.0,0.151449]
[1737965602093,0.37969572,99044.0,99043.0,0.174449]
[1737965602457,0.37948472,99044.0,99043.0,0.174449]
[1737965603220,0.3796331,99044.0,99043.0,0.174449]
[1737965603650,0.00856672,99042.0,99041.0,0.201935]
[1737965603759,0.00856672,99042.0,99041.0,0.224935]
[1737965605012,0.37106638,99044.0,99043.0,0.151449]
[1737965605180,0.3796331,99044.0,99043.0,0.324449]
[1737965605382,0.3806331,99044.0,99043.0,0.324449]
[1737965605621,0.37206638,99044.0,99043.0,0.324449]
[1737965605830,0.37206638,99044.0,99043.0,0.42179629]
[1737965606439,0.37106638,99044.0,99043.0,0.42179629]
[1737965606636,0.37206638,99044.0,99043.0,0.42179629]
[1737965607897,0.37206638,99044.0,99043.0,0.43188429]
[1737965608122,0.37306638,99044.0,99043.0,0.38333329]
[1737965608527,0.37406638,99044.0,99043.0,0.38333329]
[1737965608729,0.00314838,99044.0,99043.0,0.38333329]
[1737965608933,0.00014838,99044.0,99043.0,0.38333329]
[1737965609134,0.00014838,99044.0,99043.0,0.40376175]
[1737965609337,0.00014838,99044.0,99043.0,0.40976175]
[1737965609561,0.00014838,99044.0,99043.0,0.40576175]
[1737965609765,0.00014838,99044.0,99043.0,0.38333329]
[1737965609972,0.00014838,99044.0,99043.0,0.37324529]
[1737965610186,0.3796331,99044.0,99043.0,0.277898]
[1737965610393,0.37106638,99044.0,99043.0,1.19437929]
[1737965610600,0.37106638,99044.0,99043.0,1.00484327]
[1737965610828,0.37106638,99044.0,99043.0,1.20711631]
[1737965611308,0.37106638,99044.0,99043.0,1.21111631]
[1737965611509,0.37106638,99044.0,99043.0,1.10999131]
[1737965611705,0.37106638,99044.0,99043.0,1.11399131]
[1737965612007,0.37106638,99044.0,99043.0,1.11199131]
[1737965612210,0.37106638,99044.0,99043.0,1.11399131]
[1737965612737,0.37106638,99044.0,99043.0,1.11199131]
[1737965612945,0.00014838,99044.0,99043.0,1.11199131]
[1737965613099,0.00856672,99066.0,99065.0,0.301415]
[1737965613301,0.3795846,99066.0,99065.0,0.42176229]
[1737965614493,0.3794846,99066.0,99065.0,0.42176229]
[1737965614918,0.3814846,99066.0,99065.0,0.42176229]
[1737965615294,0.00209988,99066.0,99065.0,0.42176229]
[1737965615493,0.0001416,99078.0,99075.0,0.173]
[1737965615703,0.0001416,99094.0,99093.0,0.301372]
[1737965615920,0.0001416,99094.0,99093.0,0.42171929]
[1737965617552,0.0001416,99094.0,99093.0,0.43271012]
[1737965618166,0.0001416,99094.0,99093.0,0.60940012]
[1737965618341,0.0001416,99094.0,99093.0,0.61240012]
[1737965618741,0.0001416,99094.0,99093.0,0.61040012]
[1737965618946,0.0001416,99094.0,99093.0,0.61340012]
[1737965619171,0.0001416,99094.0,99093.0,0.61240012]
[1737965619367,0.0001416,99094.0,99093.0,0.62962178]
[1737965619575,0.0001416,99094.0,99093.0,0.63062178]
[1737965620006,0.0001416,99094.0,99093.0,0.45393178]
[1737965620310,0.0001416,99094.0,99093.0,0.43371012]
[1737965620830,0.0001416,99094.0,99093.0,0.43671012]
[1737965620963,0.0001416,99094.0,99093.0,0.43371012]
[1737965621391,6e-07,99094.0,99093.0,0.58621912]
[1737965621587,6e-07,99094.0,99093.0,0.43271012]
[1737965621789,6e-07,99094.0,99093.0,0.43371012]
[1737965621969,6e-07,99094.0,99093.0,0.43671012]
[1737965622169,6e-07,99094.0,99093.0,0.43271012]
[1737965622450,6e-07,99094.0,99093.0,0.43571012]
[1737965622646,6e-07,99094.0,99093.0,0.43671012]
[1737965623918,0.0004953,99094.0,99093.0,0.43671012]
[1737965624750,0.0004953,99094.0,99093.0,0.55814212]
[1737965625660,1e-08,99094.0,99093.0,0.55814212]
[1737965625845,0.00010171,99099.0,99098.0,0.151365]
[1737965626058,0.00020154,99099.0,99098.0,0.42171229]
[1737965626649,0.00020154,99099.0,99098.0,0.64919229]
[1737965626854,0.00020154,99099.0,99098.0,0.55475029]
[1737965627052,0.00020154,99099.0,99098.0,0.42171229]
[1737965627916,0.00020154,99099.0,99098.0,0.151365]
[1737965627917,0.13396826,99099.0,99098.0,0.151365]
[1737965628152,0.12550154,99099.0,99098.0,0.151365]
[1737965628347,0.13396826,99099.0,99098.0,0.24971229]
[1737965628543,0.00020154,99099.0,99098.0,0.27371229]
[1737965628744,0.00020154,99099.0,99098.0,0.27271229]
[1737965629086,0.00020154,99099.0,99098.0,0.27171229]
[1737965629277,0.00020154,99099.0,99098.0,1.08061029]
[1737965629417,0.00020154,99099.0,99098.0,0.77772029]
[1737965629613,0.00020154,99099.0,99098.0,0.65599529]
[1737965629817,0.00020154,99099.0,99098.0,0.64619529]
[1737965630023,0.00020154,99099.0,99098.0,0.56373429]
[1737965630997,0.00020154,99099.0,99098.0,0.53496229]
[1737965631197,0.00020154,99099.0,99098.0,0.55501388]
[1737965631431,0.00866826,99099.0,99098.0,0.25071229]
[1737965631630,0.00866826,99099.0,99098.0,0.152365]
[1737965631833,0.00866826,99099.0,99098.0,0.153365]
[1737965632259,0.00846672,99095.0,99094.0,0.15137]
[1737965632458,0.05686672,99095.0,99094.0,0.15137]
[1737965633072,0.05686672,99095.0,99094.0,0.17437]
[1737965634660,0.0484,99095.0,99094.0,0.17437]
[1737965634877,0.00020154,99099.0,99098.0,0.301365]
[1737965635089,0.00020154,99099.0,99098.0,0.92440233]
[1737965635299,0.00020154,99099.0,99098.0,1.06810933]
[1737965636209,0.00020154,99099.0,99098.0,1.06910933]
[1737965636701,0.00020154,99099.0,99098.0,1.07010933]
[1737965637558,0.00020154,99099.0,99098.0,1.09973489]
[1737965637700,0.00020154,99099.0,99098.0,1.10073489]
[1737965638962,0.00020154,99099.0,99098.0,1.08472989]
[1737965640156,0.00020154,99099.0,99098.0,1.06625889]
[1737965640389,0.00020154,99099.0,99098.0,0.80702789]
[1737965640639,0.00020154,99099.0,99098.0,0.28133785]
[1737965640640,0.00866826,99099.0,99098.0,0.28133785]
[1737965640896,0.00866826,99099.0,99098.0,0.40071229]
[1737965641116,0.00866826,99099.0,99098.0,0.39971229]
[1737965641498,0.00866826,99099.0,99098.0,0.153365]
[1737965641676,0.13396826,99099.0,99098.0,0.002]
[1737965641878,0.13396826,99099.0,99098.0,0.001]
[1737965642075,0.13396826,99099.0,99093.0,0.00029715]
[1737965642308,0.00846672,99094.0,99093.0,0.00029715]
[1737965642517,0.0132338,99098.0,99097.0,0.151366]
[1737965642675,0.00846672,99098.0,99097.0,0.174366]
[1737965642877,0.13396826,99099.0,99098.0,0.174365]
[1737965643103,0.13973534,99099.0,99098.0,0.174365]
[1737965644109,0.13126862,99099.0,99098.0,0.42171229]
[1737965644308,0.13396826,99099.0,99098.0,0.42171229]
[1737965644547,0.00020154,99099.0,99098.0,0.42171229]
[1737965644950,0.00866826,99099.0,99098.0,0.42171229]
[1737965645132,0.00866826,99099.0,99098.0,0.43267896]
[1737965646363,0.0769,99110.0,99101.0,0.173]
[1737965646561,0.0769,99110.0,99109.0,0.324348]
[1737965646985,0.08155997,99110.0,99109.0,0.324348]
[1737965649199,0.08114898,99110.0,99109.0,0.324348]
[1737965649991,0.08314898,99110.0,99109.0,0.324348]
[1737965650187,0.08314898,99110.0,99102.0,0.201812]
[1737965650388,0.08114898,99110.0,99100.0,0.30314674]
[1737965650577,0.08114898,99110.0,99101.0,0.023]
[1737965650578,0.07648901,99110.0,99101.0,0.023]
[1737965650772,0.2018,99108.0,99101.0,0.023]
[1737965651042,0.00465997,99109.0,99101.0,0.023]
[1737965651256,0.07748901,99110.0,99103.0,0.151356]
[1737965651449,0.00465997,99108.0,99101.0,0.023]
[1737965651653,0.07748901,99110.0,99105.0,0.151353]
[1737965651861,0.00465997,99107.0,99106.0,0.151353]
[1737965652071,0.01854,99108.0,99105.0,0.151353]
[1737965652281,0.00465997,99107.0,99106.0,0.151353]
[1737965652818,0.01854,99108.0,99107.0,0.151351]
[1737965653189,0.01854,99108.0,99107.0,0.27169829]
[1737965653625,0.01854,99108.0,99107.0,0.174351]
[1737965654034,0.02054,99108.0,99107.0,0.174351]
[1737965654440,0.02054,99108.0,99107.0,0.42169829]
[1737965654645,0.01854,99108.0,99107.0,0.42169829]
[1737965654846,0.01954,99108.0,99107.0,0.45251385]
[1737965655532,0.01954,99108.0,99107.0,0.46338699]
[1737965656225,0.01854,99108.0,99107.0,0.46338699]
[1737965656428,5.069e-05,99139.0,99107.0,0.46338699]
[1737965656429,5.069e-05,99139.0,99120.0,0.301331]
[1737965656640,5.069e-05,99139.0,99120.0,0.95518389]
[1737965657677,5.069e-05,99139.0,99120.0,0.97573539]
[1737965657885,5.069e-05,99139.0,99120.0,0.97673539]
[1737965658062,5.069e-05,99139.0,99120.0,0.97973539]
[1737965658235,5.069e-05,99139.0,99120.0,1.38798439]
[1737965658641,5.069e-05,99139.0,99120.0,1.39098439]
[1737965659223,5.069e-05,99139.0,99120.0,1.21711539]
[1737965659424,5.069e-05,99139.0,99120.0,1.21611539]
[1737965659651,5.069e-05,99139.0,99120.0,1.22689421]
[1737965659810,5.069e-05,99139.0,99120.0,1.22489421]
[1737965660022,5.069e-05,99139.0,99120.0,0.98751421]
[1737965660217,5.069e-05,99139.0,99120.0,0.99451421]
[1737965660417,5.069e-05,99139.0,99120.0,1.19769421]
[1737965660618,5.069e-05,99139.0,99120.0,1.20069421]
[1737965660843,5.069e-05,99139.0,99120.0,1.17637721]
[1737965661592,5.069e-05,99139.0,99120.0,0.98951421]
[1737965661957,5.069e-05,99139.0,99120.0,0.99651421]
[1737965663036,5.069e-05,99139.0,99120.0,0.99351421]
[1737965663275,5.069e-05,99139.0,99120.0,0.98651421]
[1737965663483,5.069e-05,99139.0,99120.0,1.41037565]
[1737965663721,5.069e-05,99139.0,99120.0,1.09099065]
[1737965663921,5.069e-05,99139.0,99120.0,0.55674911]
[1737965664132,5.069e-05,99139.0,99120.0,0.43745711]
[1737965664339,5.069e-05,99139.0,99120.0,0.43445711]
[1737965664549,5.069e-05,99139.0,99120.0,0.41145711]
[1737965664767,5.069e-05,99139.0,99120.0,0.26445711]
[1737965664980,5.069e-05,99139.0,99120.0,0.25945711]
[1737965665198,5.069e-05,99139.0,99120.0,0.41145711]
[1737965665413,5.069e-05,99139.0,99120.0,0.43445711]
[1737965666040,0.151304,99138.0,99120.0,0.43445711]
[1737965666294,0.0811415,99121.0,99120.0,0.007]
[1737965666497,0.1197415,99121.0,99120.0,0.156331]
[1737965666704,0.12453398,99121.0,99111.0,0.23447587]
[1737965666903,0.12453398,99121.0,99120.0,0.001]
[1737965667110,0.27586398,99121.0,99120.0,0.001]
[1737965667331,0.00479248,99121.0,99120.0,0.39967829]
[1737965667540,7e-05,99131.0,99130.0,0.324316]
[1737965667756,7e-05,99131.0,99130.0,0.42166329]
[1737965667984,0.0002183,99131.0,99130.0,0.42166329]
[1737965670281,0.0002183,99131.0,99130.0,0.43240205]
[1737965670901,0.0002183,99131.0,99130.0,0.43340205]
[1737965671308,0.0002183,99131.0,99130.0,0.43240205]
[1737965671646,0.0002183,99131.0,99130.0,0.43340205]
[1737965671843,0.0002183,99131.0,99130.0,0.43240205]
[1737965672058,0.0002183,99131.0,99130.0,0.43340205]
[1737965672464,0.0002183,99131.0,99130.0,0.43240205]
[1737965673873,0.0002183,99131.0,99130.0,0.43340205]
[1737965674073,6e-07,99136.0,99135.0,0.301308]
[1737965674297,6e-07,99136.0,99135.0,0.45227222]
[1737965674456,2.9e-07,99139.0,99138.0,0.301304]
[1737965674658,2.9e-07,99139.0,99138.0,0.45226822]
[1737965675808,2.9e-07,99139.0,99138.0,0.42165129]
[1737965677561,5e-07,99149.0,99148.0,0.301288]
[1737965677787,0.081,99189.0,99165.0,0.324263]
[1737965678010,0.00028988,99166.0,99165.0,0.92430033]
[1737965678431,0.00028988,99166.0,99165.0,1.52006933]
[1737965678638,0.0497,99193.0,99177.0,0.301244]
[1737965678854,0.0811415,99199.0,99177.0,0.301244]
[1737965678855,0.0811415,99199.0,99177.0,0.92428133]
[1737965679066,0.0811415,99199.0,99177.0,1.10715013]
[1737965679238,0.0811415,99199.0,99177.0,1.078413]
[1737965679447,0.0001415,99199.0,99177.0,1.10715013]
[1737965679809,0.0001415,99199.0,99177.0,1.10251488]
[1737965680011,0.0001415,99199.0,99177.0,1.11298007]